Cogmind - Beta 10.2 @@@ ROGUE MODE // 2021.01.04 @ 23:04:30 Player: CrossedViper Result: Destroyed by H-88 Terminator with Heavy Machine Gun Performance ------------- Evolutions (8) 4000 Regions Visited (23) 4600 Robots Destroyed (368) 1840 Value Destroyed (17470) 17470 Prototype IDs (72) 1440 Alien Tech Used (2) 400 Bonus (7383) 7383 TOTAL SCORE: 37133 Bonus ------- High Alert Combat Kills 3381 Follower Combat Kills 791 Network Hubs Disabled 200 Aligned with FarCom 300 Met Zhirov 300 Met R17 at Cetus 500 Met R17 at Research 2000 Scanned by Researcher 500 Acquired SGEMP 2000 Friendly Fire -2589 Cogmind --------- Core Integrity 0/1450 Matter 300/300 Energy 21/100 System Corruption 54% Temperature Cool (0) Movement Core (50) Location -2/Research Parts ------- > --- POWER (2) -------- (None) > --- PROPULSION (4) --- (None) > --- UTILITY (15) ----- 2N-1CE's Frost Array Long-range Sensor Array Improved Salvage Targeting Computer Advanced Target Analyzer System Mapper > --- WEAPON (2) ------- (None) > --- INVENTORY (4) ---- YI-UF0's Bottomless Matter Pit (1479) KE Penetrator SGEMP Prototype Peak State ------------ > --- POWER ------------ Light Particle Reactor Improved Quantum Reactor > --- PROPULSION ------- Heavy Siege Treads Heavy Siege Treads > --- UTILITY ---------- Improved Fusion Compressor Medium Storage Unit High-capacity Storage Unit High-capacity Storage Unit High-capacity Storage Unit High-capacity Storage Unit Improved Salvage Targeting Computer Experimental Targeting Computer Advanced Armor Integrity Analyzer Centrium Light Armor Plating Centrium Light Armor Plating Centrium Medium Armor Plating Centrium Medium Armor Plating > --- WEAPON ----------- Gamma Rifle Enhanced Gamma Rifle > --- INVENTORY -------- Quantum Reactor Quantum Reactor Quantum Reactor Medium Treads Medium Treads Armored Medium Treads Experimental Myomer Leg High-density Centrium Leg Advanced Power Amplifier Improved Cooling System Experimental Cooling System 2N-1CE's Frost Array High-capacity Storage Unit High-capacity Storage Unit High-capacity Storage Unit YI-UF0's Bottomless Matter Pit Long-range Sensor Array Advanced Terrain Scan Processor Improved Salvage Targeting Computer Advanced Armor Integrity Analyzer 8R-AWN's Armor/EX Antimissile System System Mapper Dynamic Insulation System Warp Gun HERF Cannon HERF Cannon HERF Cannon Compact HERF Cannon Coil Gun Multirail Tri-rail Accelerator Improved Proton Missile Launcher Plasma Lance SGEMP Prototype [Rating: 160] Favorites ----------- Power Cooled Fission Core Engine Heavy Ion Engine Power Core Cooled Fission Core Reactor Light Particle Reactor Propulsion Light Treads Treads Light Treads Leg Advanced Myomer Leg Hover Unit Cooled Gravmag System Utility High-capacity Storage Unit Device Improved Cooling System Storage High-capacity Storage Unit Processor Experimental Targeting Computer Hackware Hacking Suite Protection Centrium Medium Armor Plating Weapon Advanced Beam Cannon Energy Gun Gamma Rifle Energy Cannon Advanced Beam Cannon Ballistic Gun Improved KE Penetrator Ballistic Cannon Tri-rail Accelerator Launcher Heavy Missile Launcher Build | -11 -10 -10 -9 -9 -9 -8 -8 -8 -7 -6 -6 -6 -6 -6 -5 -5 -5 -5 -4 -4 -3 -3 -2 ------- Run | Scr Mat Min Mat Min Exi Min Mat Sto Fac Fac Ext Cet Arc Hub Fac Upp Upp Zhi Pro Fac Res Tes Res Slots Evolved 16 | . . . 2 . . . 2 . 2 2 . . . . 2 . . . . 2 2 . 2 Power 1 | . . . . . . . . . . . . . . . . . . . . 1 . . . Propulsion 2 | . . . . . . . . . . 1 . . . . 1 . . . . . . . . Utility 13 | . . . 2 . . . 2 . 2 1 . . . . 1 . . . . 1 2 . 2 Weapon . | . . . . . . . . . . . . . . . . . . . . . . . . Parts Attached 320 | . 16 10 23 8 19 8 5 14 5 7 28 8 1 2 11 4 1 14 2 8 7 40 79 Power 30 | . 2 1 2 1 2 . 1 1 . . 1 1 . . 2 . . 2 . 1 1 3 9 Engine 8 | . 2 . 2 1 1 . 1 1 . . . . . . . . . . . . . . . Core 8 | . . 1 . . 1 . . . . . 1 . . . 2 . . 1 . 1 . . 1 Reactor 14 | . . . . . . . . . . . . 1 . . . . . 1 . . 1 3 8 Propulsion 69 | . 8 4 5 1 4 3 . 4 2 2 8 2 1 . 1 . . 2 1 1 . 4 16 Treads 59 | . 8 2 5 1 2 3 . 4 2 2 6 2 1 . 1 . . 1 1 1 . 4 13 Leg 9 | . . 2 . . 2 . . . . . 2 . . . . . . . . . . . 3 Wheel . | . . . . . . . . . . . . . . . . . . . . . . . . Hover 1 | . . . . . . . . . . . . . . . . . . 1 . . . . . Flight . | . . . . . . . . . . . . . . . . . . . . . . . . Utility 113 | . 2 . 5 3 5 1 3 4 3 3 7 2 . 2 4 3 1 8 1 3 4 13 36 Device 38 | . 1 . 1 1 5 1 1 . . . 3 . . . 1 1 . 2 1 . 2 4 14 Storage 12 | . 1 . 2 1 . . . 2 . . . . . . 1 . . 1 . . 1 2 1 Processor 8 | . . . 1 1 . . 1 . 1 1 . . . . . . . . . . . 1 2 Hackware 3 | . . . . . . . . . . . . . . . . . . . . . . 1 2 Protection 52 | . . . 1 . . . 1 2 2 2 4 2 . 2 2 2 1 5 . 3 1 5 17 Artifact . | . . . . . . . . . . . . . . . . . . . . . . . . Weapon 108 | . 4 5 11 3 8 4 1 5 . 2 12 3 . . 4 1 . 2 . 3 2 20 18 Energy Gun 18 | . 2 . 2 . . . . . . . . . . . 1 . . . . . . 11 2 Energy Cannon 25 | . . 2 1 . . . . 2 . 2 6 . . . 1 1 . . . 1 2 1 6 Ballistic Gun 42 | . 2 2 6 3 5 3 . 3 . . 3 3 . . 2 . . 2 . 1 . 2 5 Ballistic Cannon 9 | . . . . . . . . . . . . . . . . . . . . . . 5 4 Launcher 14 | . . 1 2 . 3 1 1 . . . 3 . . . . . . . . 1 . 1 1 Special Weapon . | . . . . . . . . . . . . . . . . . . . . . . . . Impact Weapon . | . . . . . . . . . . . . . . . . . . . . . . . . Slashing Weapon . | . . . . . . . . . . . . . . . . . . . . . . . . Piercing Weapon . | . . . . . . . . . . . . . . . . . . . . . . . . Special Melee Weapon . | . . . . . . . . . . . . . . . . . . . . . . . . Unidentified Prototypes 37 | . . . . 1 6 . 1 2 . . . 3 . . 5 . . 5 . . . 9 5 Parts Lost 142 | . 1 4 5 1 6 . 1 . 4 . 16 . . . . 3 1 . . 5 1 21 73 Power 18 | . . 1 1 . 1 . . . . . . . . . . . . . . . 1 4 10 Propulsion 27 | . . 2 . . 2 . . . . . 6 . . . . . . . . . . 4 13 Utility 61 | . . 1 . . 1 . . . 2 . 5 . . . . 2 1 . . 2 . 9 38 Weapon 36 | . 1 . 4 1 2 . 1 . 2 . 5 . . . . 1 . . . 3 . 4 12 Highest Loss Streak 22 | . 1 1 1 1 5 . 1 . 3 . 4 . . . . 2 1 . . 3 1 4 22 Average Slot Usage (%) 91 | . 97 90 98 100 99 100 89 100 95 94 96 94 93 93 88 87 88 88 88 86 85 82 75 Engine 3 | . 14 9 4 11 9 . 7 9 7 6 1 . . . . . . . . . . . . Core 3 | . . 4 6 . 1 11 1 . . . 4 4 . . 4 5 5 5 5 9 7 . . Reactor 1 | . . . . . . . . . . . . 1 6 6 . . . . . . . 7 6 Treads 15 | . 25 26 20 22 19 21 18 18 15 20 16 14 13 13 11 11 11 11 11 10 9 9 9 Device 11 | . 14 6 10 11 10 11 16 10 7 6 10 14 13 13 11 14 14 11 16 14 17 9 7 Storage 19 | . 14 14 21 22 22 22 18 24 23 20 20 20 20 20 17 17 17 17 17 15 14 19 19 Processor 10 | . . . 4 10 11 11 15 11 10 13 13 13 13 13 11 11 11 11 11 10 9 11 14 Protection 9 | . . . 5 . . . . 7 14 14 12 11 13 13 16 13 13 17 11 14 18 13 7 Energy Cannon 4 | . . 2 7 . . . . 12 14 13 7 . . . . 3 5 5 5 3 7 1 1 Ballistic Gun 8 | . 18 24 13 22 21 21 11 5 . . 3 13 13 13 10 6 5 5 5 4 . . 2 Naked Turns . | . . . . . . . . . . . . . . . . . . . . . . . . Heaviest Build 229 | 11 29 30 85 81 96 93 91 115 118 125 141 145 145 145 147 141 139 143 141 156 172 208 229 Greatest Support 160 | 20 40 40 40 40 60 60 40 40 40 60 80 103 103 103 160 160 160 160 160 160 160 160 150 Greatest Overweight (x) 9 | . 9 2 2 2 2 2 2 2 2 2 5 1 1 1 . . . 1 . . 1 3 6 Average Overweight (x) . | . . . 1 1 1 1 1 1 2 1 1 1 1 1 . . . . . . . . 1 Largest Inventory Capacity 44 | . 10 10 20 20 20 20 20 28 28 28 28 28 28 28 28 28 28 28 28 28 28 40 44 Average Capacity 26 | . 9 10 19 20 20 20 20 25 28 28 28 28 28 28 28 28 28 28 28 28 28 35 38 Most Carried 40 | . 6 10 20 20 20 20 20 28 28 27 28 28 28 28 28 28 28 28 28 28 28 40 40 Average Carried 23 | . 3 9 17 19 18 19 19 24 27 26 25 26 28 28 27 25 26 27 27 27 26 27 33 Final Capacity 40 | 6 10 10 20 20 20 20 20 28 28 28 28 28 28 28 28 28 28 28 28 28 28 40 4 Final Carried 37 | 6 6 10 18 19 20 20 19 28 28 27 28 28 28 28 28 24 28 28 28 25 28 37 4 Class Distribution -------------------- 72% | Scavenger-Mutant 20% | Hauler-Mutant 7% | Mutant Dominant Class ---------------- Mutant | -10/Materials Mutant | -10/Mines Scavenger-Mutant | -9/Materials Scavenger-Mutant | -9/Mines Scavenger-Mutant | -9/Exiles Scavenger-Mutant | -8/Mines Scavenger-Mutant | -8/Materials Hauler-Mutant | -8/Storage Hauler-Mutant | -7/Factory Scavenger-Mutant | -6/Factory Scavenger-Mutant | -6/Extension Scavenger-Mutant | -6/Cetus Scavenger-Mutant | -6/Archives Scavenger-Mutant | -6/Hub_04(d) Scavenger-Mutant | -5/Factory Scavenger-Mutant | -5/Upper Caves Scavenger-Mutant | -5/Upper Caves Scavenger-Mutant | -5/Zhirov Scavenger-Mutant | -4/Proximity Caves Scavenger-Mutant | -4/Factory Scavenger-Mutant | -3/Research Hauler-Mutant | -3/Testing Hauler-Mutant | -2/Research Resources | -11 -10 -10 -9 -9 -9 -8 -8 -8 -7 -6 -6 -6 -6 -6 -5 -5 -5 -5 -4 -4 -3 -3 -2 ----------- Run | Scr Mat Min Mat Min Exi Min Mat Sto Fac Fac Ext Cet Arc Hub Fac Upp Upp Zhi Pro Fac Res Tes Res Matter Collected 10683 | 200 282 253 382 1070 1001 329 181 323 40 65 644 267 74 220 438 151 174 192 226 90 209 835 3037 Remotely . | . . . . . . . . . . . . . . . . . . . . . . . . Salvage Created 20802 | . 300 611 896 333 138 249 96 1001 270 89 1900 296 328 1103 808 327 721 267 599 813 692 3245 5720 Parts 933 | . 17 37 85 13 11 13 8 43 8 7 65 16 12 44 27 13 29 12 35 35 16 140 247 Haulers Intercepted 10 | . 1 . 1 . . . . 2 . . 1 . . 1 2 . . . . . 1 1 . Recyclers Shooed 17 | . 2 . . . . . . 2 1 . . . . . 2 . 1 . . 2 . 1 6 Parts Field Recycled . | . . . . . . . . . . . . . . . . . . . . . . . . Retrieved Matter . | . . . . . . . . . . . . . . . . . . . . . . . . Parts Self-Destructed 88 | . . . . . . . . . . . . . . . . 13 29 11 35 . . . . Prevented . | . . . . . . . . . . . . . . . . . . . . . . . . Kills | -11 -10 -10 -9 -9 -9 -8 -8 -8 -7 -6 -6 -6 -6 -6 -5 -5 -5 -5 -4 -4 -3 -3 -2 ------- Run | Scr Mat Min Mat Min Exi Min Mat Sto Fac Fac Ext Cet Arc Hub Fac Upp Upp Zhi Pro Fac Res Tes Res Combat Hostiles Destroyed 287 | . 5 16 24 3 2 3 4 15 2 1 28 3 4 14 6 5 12 . 14 6 6 46 68 Guns 109 | . 5 12 6 3 1 . 1 1 . . 2 3 4 14 6 4 7 . 6 1 . 7 26 Cannons 115 | . . 1 9 . . . . 13 1 1 16 . . . . 1 5 . 8 . 3 30 27 AOE 34 | . . 3 8 . 1 3 3 . . . 9 . . . . . . . . 4 . 1 2 Classes Destroyed 20 | . 4 2 4 . . 1 1 . 1 1 1 . . . . . . . . . . 3 2 Worker 20 | . . . 1 1 . 3 1 2 . . . . . 1 . . . . . . 1 . 10 Builder 18 | . . 1 3 . . . . . . . 1 . . 1 . . . . . 1 . 3 8 Tunneler 1 | . . . 1 . . . . . . . . . . . . . . . . . . . . Hauler 10 | . 1 . 1 . . . . 2 . . 1 . . 1 2 . . . . . 1 1 . Recycler 16 | . 1 1 1 . . 1 . 1 2 . 4 . . . 1 . . . . 2 . 1 1 Operator 4 | . . . . . . . . . . 1 1 . . . . . . . . . . 2 . Watcher 10 | . . . 5 . . . . 1 . . . . . . 1 . . . . 1 1 1 . Swarmer 51 | . 3 3 13 . . . 3 . . . 6 . . . . . 5 . 9 . . 4 5 Grunt 120 | . 2 11 6 2 . 2 . 6 . . 10 . . 11 5 1 5 . 3 2 2 22 30 Brawler 3 | . . . . . . 1 . 1 . . . . . . . . . . . . . 1 . Duelist 5 | . . . . . . . . . . . . . . . . . . . . . . . 5 Researcher 2 | . . . . . . . . . . . . . . . . . . . . . . 2 . Sentry 39 | . . . 5 . . . . 6 1 1 6 . 4 3 1 1 1 . . 2 2 . 6 Hunter 29 | . . . . . . . 1 2 . . 4 1 . . . 3 . . . 2 2 6 8 Programmer 24 | . . . . . . . . . 1 . . . . . . . . . 2 . . 10 11 Q-Series 1 | . . . . . . . . . . . . . . . . . . . . . . . 1 Behemoth 5 | . . . . . . . . . . . 2 . . . . . 1 . . . . . 2 Cetus Guard 2 | . . . . . . . . . . . . 2 . . . . . . . . . . . Striker 2 | . . . . . . . . . . . . . . . . . . . . . . 2 . Alpha 7 1 | . . . . . . . . . . . . . . . . . . . . . . 1 . Packrat 1 | . . . . . . . . . . . . . . . . . 1 . . . . . . Assembled 10 | . . 2 . 1 7 . . . . . . . . . . . . . . . . . . Thug 2 | . . 1 . 1 . . . . . . . . . . . . . . . . . . . Guerrilla 1 | . . . . . . . . . . . . 1 . . . . . . . . . . . Best Kill Streak 15 | . 4 4 9 3 1 5 4 4 3 1 7 3 4 8 2 2 4 . 5 7 6 15 11 Combat Bots Only 8 | . 3 4 4 2 1 3 3 3 1 1 6 3 4 8 2 2 4 . 5 5 2 8 7 Max Kills in Single Turn 6 | . 1 2 4 1 6 3 3 2 1 1 3 1 1 2 2 1 1 . 1 4 1 2 2 Gunslinging 1 | . . . 1 . . . . . . . . . . 1 . . . . . . . . 1 Exploded 3 | . . 2 3 . 1 2 2 . . . 3 . . . . . . . . 2 . 1 2 Melee . | . . . . . . . . . . . . . . . . . . . . . . . . Uniques/NPCs Destroyed 2 | . . . . 1 1 . . . . . . . . . . . . . . . . . . YI-UF0 (-9/Mines) 8R-AWN (-9/Exiles) Combat | -11 -10 -10 -9 -9 -9 -8 -8 -8 -7 -6 -6 -6 -6 -6 -5 -5 -5 -5 -4 -4 -3 -3 -2 -------- Run | Scr Mat Min Mat Min Exi Min Mat Sto Fac Fac Ext Cet Arc Hub Fac Upp Upp Zhi Pro Fac Res Tes Res Damage Taken 39558 | . 193 566 916 171 775 126 173 572 303 75 3454 132 67 1072 812 604 715 . 854 2410 631 5791 19146 Core 2876 | . 26 63 103 11 127 16 55 67 45 . 385 . . . 86 85 23 . 15 90 21 196 1462 Absorbed by Shields 75 | . . . . . 75 . . . . . . . . . . . . . . . . . . Reduced by Siege Mode 2079 | . . . . . . . . . . . . 8 . . 15 49 61 . 80 167 40 538 1121 Core Remaining (%) 74 | 100 . 64 . . . 35 . 77 93 . . . . 54 . . . . 79 92 . 77 . Volleys Fired 1128 | . 35 50 70 35 31 4 6 50 16 4 127 19 8 37 29 18 41 17 36 36 24 169 266 Largest 2 | . 2 2 2 2 2 2 2 2 2 2 2 2 2 2 2 2 2 1 2 2 2 2 2 Hottest 194 | . 70 83 113 43 63 46 46 136 136 136 136 58 70 70 70 103 103 30 103 103 194 194 176 Shots Fired 1956 | . 69 91 132 70 62 6 9 100 32 8 234 34 16 74 58 36 82 17 64 57 42 249 414 Gun 1103 | . 69 80 93 70 58 4 7 10 . . 37 34 16 74 58 29 41 17 35 31 . 124 216 Cannon 799 | . . 9 35 . . . . 90 32 8 175 . . . . 7 41 . 29 18 42 117 196 Launcher 54 | . . 2 4 . 4 2 2 . . . 22 . . . . . . . . 8 . 8 2 Special . | . . . . . . . . . . . . . . . . . . . . . . . . Kinetic 1096 | . 58 80 88 70 58 4 7 10 . . 37 34 16 74 58 29 41 17 35 31 . 75 274 Thermal 501 | . 11 . . . . . . 90 32 8 175 . . . . 7 41 . 29 13 22 47 26 Explosive 36 | . . 2 4 . 4 2 2 . . . 22 . . . . . . . . . . . . Electromagnetic 323 | . . 9 40 . . . . . . . . . . . . . . . . 13 20 127 114 Robot Hit Streak 55 | . 8 18 15 10 18 10 3 21 10 3 44 22 16 33 20 38 25 10 17 22 26 45 55 Robot Miss Streak 4 | . 3 4 3 2 2 1 3 1 1 1 3 2 . 1 2 2 3 1 2 2 1 3 4 Penetration Max 1 | . . . . . . . . . . . . 1 . 1 1 1 1 1 1 . . 1 1 Secondary Targets 11 | . 1 . 1 . . . . . . . . . . 2 . 1 . . . 1 . 1 4 Max Gunslinging Chain 1 | . 1 . 1 . . . . . . . . . . 1 . 1 . . . 1 . 1 1 Shots Hit Robots 1542 | . 48 64 82 53 51 3 4 72 25 6 181 24 14 62 44 29 69 15 40 49 32 210 365 Core Hits 782 | . 14 32 44 20 31 10 9 29 7 3 84 21 9 31 20 10 28 4 18 27 15 109 207 Critical Hits 178 | . 1 2 . . 1 . . 8 4 1 22 10 2 16 10 8 16 11 9 8 . 5 44 Critical Kills 60 | . 1 1 . . . . . 2 1 1 4 3 2 9 5 3 3 2 3 1 . 1 18 Critical Parts Destroyed 89 | . . 1 . . . . . 5 3 . 10 7 . 6 4 5 11 3 6 6 . 4 18 Melee Attacks . | . . . . . . . . . . . . . . . . . . . . . . . . Impact . | . . . . . . . . . . . . . . . . . . . . . . . . Slashing . | . . . . . . . . . . . . . . . . . . . . . . . . Piercing . | . . . . . . . . . . . . . . . . . . . . . . . . Sneak Attacks . | . . . . . . . . . . . . . . . . . . . . . . . . Combat Hostiles . | . . . . . . . . . . . . . . . . . . . . . . . . Follow-up Attacks . | . . . . . . . . . . . . . . . . . . . . . . . . Damage Inflicted 47702 | . 518 911 2575 636 1098 275 261 1549 575 123 5948 516 400 2045 1179 578 1538 254 965 1830 1473 8883 13572 Guns 19670 | . 518 607 641 636 747 31 65 162 . . 451 516 363 1868 1179 496 815 254 524 670 . 2853 6274 Cannons 20914 | . . 144 724 . . . . 1381 550 123 2994 . . . . 82 723 . 441 349 1342 5457 6604 Explosions 6762 | . . 160 1200 . 351 244 196 . . . 2440 . . 177 . . . . . 709 131 560 594 Melee . | . . . . . . . . . . . . . . . . . . . . . . . . Ramming 356 | . . . 10 . . . . 6 25 . 63 . 37 . . . . . . 102 . 13 100 Kinetic 23312 | . 410 607 581 636 747 31 65 162 . . 451 516 363 1868 1179 496 815 254 524 670 . 3922 9015 Thermal 10160 | . 108 . 76 . . . . 1381 550 123 3102 . . . . 82 723 . 441 399 713 1430 1032 Explosive 4474 | . . 160 1124 . 351 244 196 . . . 2332 . . . . . . . . . . 67 . Electromagnetic 9400 | . . 144 784 . . . . . . . . . . 177 . . . . . 659 760 3451 3425 Impact . | . . . . . . . . . . . . . . . . . . . . . . . . Slashing . | . . . . . . . . . . . . . . . . . . . . . . . . Piercing . | . . . . . . . . . . . . . . . . . . . . . . . . Highest Corruption 54 | . 2 2 . . . . . . 1 . . . . 4 . . . . 5 . . 5 54 Average Corruption 11 | . 2 2 . . . . . . 1 . . . . 1 . . . . 4 . . 2 29 Corruption Purged . | . . . . . . . . . . . . . . . . . . . . . . . . Effects 205 | . . 15 . . . . . . 2 . . . . . . . . . 7 . . 13 168 Message Errors 27 | . . 3 . . . . . . 1 . . . . . . . . . 2 . . 4 17 Matter Fused 18 | . . . . . . . . . . . . . . . . . . . 2 . . . 16 Heat Flow Errors 6 | . . 1 . . . . . . . . . . . . . . . . 1 . . 1 3 Energy Discharges 16 | . . 5 . . . . . . 1 . . . . . . . . . . . . 2 8 Parts Rejected 2 | . . . . . . . . . . . . . . . . . . . . . . . 2 Data Loss (minor) 8 | . . 3 . . . . . . . . . . . . . . . . . . . . 5 Data Loss (major) 2 | . . . . . . . . . . . . . . . . . . . . . . . 2 Misfires 3 | . . . . . . . . . . . . . . . . . . . . . . 1 2 Alerts 4 | . . . . . . . . . . . . . . . . . . . . . . . 4 Misdirections 11 | . . . . . . . . . . . . . . . . . . . . . . . 11 Targeting Errors 90 | . . 2 . . . . . . . . . . . . . . . . 1 . . 5 82 Weapon Failures 18 | . . 1 . . . . . . . . . . . . . . . . 1 . . . 16 Overload Shots . | . . . . . . . . . . . . . . . . . . . . . . . . Overflow Damage 905 | . . 20 146 . 3 . . 18 40 . 150 . 27 . . . 23 . . 22 48 328 80 Projectiles 421 | . . . 47 . . . . 18 40 . 14 . . . . . 23 . . . 48 205 26 Explosions 441 | . . 20 99 . 3 . . . . . 120 . . . . . . . . 22 . 123 54 Melee 43 | . . . . . . . . . . . 16 . 27 . . . . . . . . . . Knockbacks 90 | . . . 1 . . . . . . . 1 . . . . . . . . 1 . 64 23 Impact 3 | . . . 1 . . . . . . . 1 . . . . . . . . 1 . . . Kinetic 76 | . . . . . . . . . . . . . . . . . . . . . . 56 20 Secondary 11 | . . . . . . . . . . . . . . . . . . . . . . 8 3 Self-Inflicted Damage 797 | . . 32 177 . . 77 . . . . 94 . . 95 . . . . . . 30 177 115 Shots 19 | . . 2 4 . . 2 . . . . 3 . . 1 . . . . . . 1 3 3 Rammed 22 | . . . 2 . . . . 1 1 . 2 . 1 . . . . . . 6 . 3 6 Targets Rammed 25 | . . . 2 . . . . 1 1 . 2 . 1 . . . . . . 6 . 3 9 Kicked 2 | . . . . . . . . . . . . . . . . . . . . . . . 2 Crushed 1 | . . . . . . . . . . . . . . . . . . . . . . . 1 Highest Temperature 323 | . . 301 232 6 . . . 27 . 8 132 . . 6 . . 10 . 46 . 2 226 323 Average Temperature 66 | . . 94 60 4 . . . 10 . 5 33 . . 4 . . 5 . 46 . 2 51 145 Received Heat Transfer 4832 | . 39 192 180 50 . 18 . 189 54 30 516 . . 258 267 9 84 . 36 339 39 453 2079 Effects 5 | . . . . . . . . . . . . . . . . . . . . . . . 5 Interference 4 | . . . . . . . . . . . . . . . . . . . . . . . 4 Matter Decay 1 | . . . . . . . . . . . . . . . . . . . . . . . 1 Siege Activations 46 | . . . . . . . . . . . . 2 . . 2 3 5 . 5 1 2 11 15 Total Turns 1393 | . . . . . . . . . . . . 22 . . 19 44 156 . 127 50 65 288 622 Longest Duration 109 | . . . . . . . . . . . . 12 . . 10 27 51 . 64 50 54 86 109 Robots Corrupted 29 | . . . 1 . . . . . . . . . . . . . . . . 1 3 11 13 Combat Hostiles 26 | . . . 1 . . . . . . . . . . . . . . . . 1 3 8 13 Parts Fried 90 | . . 1 7 . . . . . . . 1 . . 1 . . . . . 5 9 37 29 Impact Corruptions 2 | . . . . . . . . . . . 1 . 1 . . . . . . . . . . Robots Melted 3 | . . . . . . . . 1 1 . 1 . . . . . . . . . . . . Combat Hostiles 3 | . . . . . . . . 1 1 . 1 . . . . . . . . . . . . Parts Melted 20 | . . . . . . . . 4 3 1 7 . . . . . . . 1 . 2 2 . Heat Transferred 15117 | . 296 . 50 . . . . 2405 888 222 5217 . . . . 148 1258 . 740 557 642 1469 1225 Parts Sabotaged . | . . . . . . . . . . . . . . . . . . . . . . . . Parts Stolen . | . . . . . . . . . . . . . . . . . . . . . . . . Parts Stripped . | . . . . . . . . . . . . . . . . . . . . . . . . Power Chain Reactions 7 | . . . 2 . . . . . . . . . . . . . . . . 1 1 2 1 Missiles Intercepted . | . . . . . . . . . . . . . . . . . . . . . . . . Alert | -11 -10 -10 -9 -9 -9 -8 -8 -8 -7 -6 -6 -6 -6 -6 -5 -5 -5 -5 -4 -4 -3 -3 -2 ------- Run | Scr Mat Min Mat Min Exi Min Mat Sto Fac Fac Ext Cet Arc Hub Fac Upp Upp Zhi Pro Fac Res Tes Res Peak Influence 1592 | . 135 175 425 195 . 106 95 497 241 99 366 487 297 897 556 . . . . 334 328 718 1592 Initial 438 | . . 25 68 159 . . . 39 199 47 9 204 194 103 438 . . . . . 111 184 398 Average 261 | . 49 63 263 65 . 29 39 222 158 69 97 370 269 368 343 . . . . 78 216 260 1061 Maximum Alert Level 4 | . . . 2 . . . . 2 1 . 1 2 1 3 2 . . . . 1 1 3 4 Low Security (%) 58 | . 100 100 21 100 . 100 100 59 64 100 84 . 11 45 20 . . . . 86 46 36 . Level 1 23 | . . . 71 . . . . 17 35 . 15 63 88 19 27 . . . . 13 53 53 3 Level 2 8 | . . . 7 . . . . 22 . . . 36 . 16 51 . . . . . . 8 18 Level 3 3 | . . . . . . . . . . . . . . 19 . . . . . . . 1 27 Level 4 5 | . . . . . . . . . . . . . . . . . . . . . . . 49 Level 5 . | . . . . . . . . . . . . . . . . . . . . . . . . High Security . | . . . . . . . . . . . . . . . . . . . . . . . . Max Security . | . . . . . . . . . . . . . . . . . . . . . . . . Squads Dispatched 61 | . 1 . 5 . . . . 5 3 . 2 . . 3 2 . . . . 3 3 14 20 Investigation 10 | . 1 . 2 . . . . 3 . . . . . . . . . . . . 3 1 . Extermination 10 | . . . . . . . . . 1 . . . . . . . . . . . . 4 5 Reinforcement 27 | . . . 3 . . . . . 1 . 2 . . 3 2 . . . . 2 . 7 7 Assault 5 | . . . . . . . . . . . . . . . . . . . . . . . 5 Garrison 9 | . . . . . . . . 2 1 . . . . . . . . . . 1 . 2 3 Intercept . | . . . . . . . . . . . . . . . . . . . . . . . . Construction Impeded 2 | . . . . . . . . . . . 1 . . . . . . . . . . 1 . Haulers Reinforced 7 | . . . . . . . . . . . . . . 2 2 . . . . . . . 3 Stealth | -11 -10 -10 -9 -9 -9 -8 -8 -8 -7 -6 -6 -6 -6 -6 -5 -5 -5 -5 -4 -4 -3 -3 -2 --------- Run | Scr Mat Min Mat Min Exi Min Mat Sto Fac Fac Ext Cet Arc Hub Fac Upp Upp Zhi Pro Fac Res Tes Res Distress Signals 27 | . 2 . 5 . . . 1 1 . . 2 2 . 3 . . . . . 3 2 . 6 Communications Jammed . | . . . . . . . . . . . . . . . . . . . . . . . . Distress Signals . | . . . . . . . . . . . . . . . . . . . . . . . . Times Spotted 469 | . 11 17 37 10 2 3 6 18 11 2 45 12 3 25 17 5 12 . 12 23 15 73 110 Peak Tracking Total 11 | . 3 3 5 3 3 3 6 3 8 1 8 5 1 7 10 2 4 . 5 11 4 7 11 Tactical Retreats 21 | . 2 . 2 . . . . 3 . . 3 . . 2 . . . . . . . 3 6 Traps | -11 -10 -10 -9 -9 -9 -8 -8 -8 -7 -6 -6 -6 -6 -6 -5 -5 -5 -5 -4 -4 -3 -3 -2 ------- Run | Scr Mat Min Mat Min Exi Min Mat Sto Fac Fac Ext Cet Arc Hub Fac Upp Upp Zhi Pro Fac Res Tes Res Traps Triggered 18 | . 6 . 1 . 1 . . 1 . . 4 . . 2 . . . . . . 1 2 . Indirectly . | . . . . . . . . . . . . . . . . . . . . . . . . Trap Hack Attempts . | . . . . . . . . . . . . . . . . . . . . . . . . Triggered . | . . . . . . . . . . . . . . . . . . . . . . . . Disarmed . | . . . . . . . . . . . . . . . . . . . . . . . . Reprogrammed . | . . . . . . . . . . . . . . . . . . . . . . . . Reused . | . . . . . . . . . . . . . . . . . . . . . . . . Traps Extracted . | . . . . . . . . . . . . . . . . . . . . . . . . Installed 1 | . . . . . 1 . . . . . . . . . . . . . . . . . . Triggered 2 | . . . . . . . . . . . . . . . . 1 . . . . . 1 . Machines | -11 -10 -10 -9 -9 -9 -8 -8 -8 -7 -6 -6 -6 -6 -6 -5 -5 -5 -5 -4 -4 -3 -3 -2 ---------- Run | Scr Mat Min Mat Min Exi Min Mat Sto Fac Fac Ext Cet Arc Hub Fac Upp Upp Zhi Pro Fac Res Tes Res Machines Disabled 61 | . . 2 4 . 3 . . 2 . . 9 . 2 15 2 . . . . 9 1 7 5 Max in Single Turn 14 | . . 2 2 . 1 . . 1 . . 3 . 1 14 1 . . . . 8 1 2 1 Garrison Access 1 | . . . . . . . . . . . . . . . . . . . . . . . 1 Network Hub 1 | . . . . . . . . . . . . . . 1 . . . . . . . . . Energy Cycler 4 | . . . . . . . . . . . 4 . . . . . . . . . . . . Machines Sabotaged . | . . . . . . . . . . . . . . . . . . . . . . . . Garrisons Compromised . | . . . . . . . . . . . . . . . . . . . . . . . . Overloaded Fab Kills . | . . . . . . . . . . . . . . . . . . . . . . . . Fab Network Shutdowns . | . . . . . . . . . . . . . . . . . . . . . . . . Hacking | -11 -10 -10 -9 -9 -9 -8 -8 -8 -7 -6 -6 -6 -6 -6 -5 -5 -5 -5 -4 -4 -3 -3 -2 --------- Run | Scr Mat Min Mat Min Exi Min Mat Sto Fac Fac Ext Cet Arc Hub Fac Upp Upp Zhi Pro Fac Res Tes Res Machines Accessed 59 | . 3 2 3 . 1 . 2 10 4 5 6 . . 1 4 1 . 5 . 3 . 7 2 Terminals 37 | . 2 1 2 . . . 2 6 2 4 6 . . 1 3 . . . . 2 . 4 2 Fabricators 2 | . . . . . . . . . 1 1 . . . . . . . . . . . . . Repair Stations 6 | . . . . . . . . 2 . . . . . . 1 . . . . 1 . 2 . Recycling Units 3 | . 1 . . . . . . 2 . . . . . . . . . . . . . . . Scanalyzers 3 | . . . 1 . . . . . 1 . . . . . . . . . . . . 1 . Garrison Access . | . . . . . . . . . . . . . . . . . . . . . . . . Total Hacks 169 | . 10 6 6 . 1 . 6 18 7 11 12 . . 2 17 1 . 27 . 8 . 31 6 Successful 96 | . 5 3 3 . 1 . 5 13 3 4 6 . . . 6 1 . 27 . 2 . 15 2 Failed 73 | . 5 3 3 . . . 1 5 4 7 6 . . 2 11 . . . . 6 . 16 4 Catastrophic 14 | . 2 1 1 . . . . . . 1 . . . 1 1 . . . . 2 . 4 1 Database Lockouts . | . . . . . . . . . . . . . . . . . . . . . . . . Manual 51 | . 10 5 4 . 1 . 4 4 . 2 3 . . . 7 . . . . 4 . 7 . Terminals 110 | . 9 5 4 . . . 6 10 4 10 12 . . 2 16 . . . . 7 . 19 6 Fabricators 3 | . . . . . . . . . 2 1 . . . . . . . . . . . . . Repair Stations 13 | . . . . . . . . 6 . . . . . . 1 . . . . 1 . 5 . Recycling Units 3 | . 1 . . . . . . 2 . . . . . . . . . . . . . . . Scanalyzers 10 | . . . 2 . . . . . 1 . . . . . . . . . . . . 7 . Garrison Access . | . . . . . . . . . . . . . . . . . . . . . . . . Terminal Hacks 65 | . 1 2 . . 1 . 3 7 1 3 6 . . . 6 1 . 27 . . . 5 2 Record 16 | . . . . . . . . . . . . . . . . . . 15 . . . . 1 Part Schematic 6 | . . . . . . . . 1 . . 1 . . . . . . 4 . . . . . Robot Analysis 8 | . 1 1 . . . . 1 1 . . . . . . . . . 4 . . . . . Prototype ID Bank 5 | . . . . . . . . . . . 1 . . . . . . 4 . . . . . Open Door 7 | . . 1 . . . . . 3 . 1 1 . . . . 1 . . . . . . . Level Access Points 1 | . . . . . . . . . 1 . . . . . . . . . . . . . . Branch Access Points 3 | . . . . . . . 1 . . 1 . . . . 1 . . . . . . . . Terminal Index 1 | . . . . . . . . 1 . . . . . . . . . . . . . . . Alert Level 4 | . . . . . . . . . . . 1 . . . 1 . . . . . . 1 1 Unreport Threat 8 | . . . . . . . 1 . . . 2 . . . 2 . . . . . . 3 . Locate Traps 1 | . . . . . . . . . . . . . . . . . . . . . . 1 . Dispatch Records 1 | . . . . . . . . . . . . . . . 1 . . . . . . . . Recall Investigation 1 | . . . . . . . . 1 . . . . . . . . . . . . . . . Hauler Manifests 1 | . . . . . . . . . . 1 . . . . . . . . . . . . . Zone Layout 1 | . . . . . . . . . . . . . . . 1 . . . . . . . . EX-Prototype ID Bank 1 | . . . . . 1 . . . . . . . . . . . . . . . . . . Fabricator Hacks 1 | . . . . . . . . . 1 . . . . . . . . . . . . . . Load Schematic 1 | . . . . . . . . . 1 . . . . . . . . . . . . . . Repair Station Hacks 6 | . . . . . . . . 4 . . . . . . . . . . . . . 2 . Scan Component 4 | . . . . . . . . 3 . . . . . . . . . . . . . 1 . Repair 2 | . . . . . . . . 1 . . . . . . . . . . . . . 1 . Recycling Unit Hacks . | . . . . . . . . . . . . . . . . . . . . . . . . Scanalyzer 7 | . . . 2 . . . . . 1 . . . . . . . . . . . . 4 . Insert Component 4 | . . . 1 . . . . . 1 . . . . . . . . . . . . 2 . Analyze 3 | . . . 1 . . . . . . . . . . . . . . . . . . 2 . Garrison Access Hacks . | . . . . . . . . . . . . . . . . . . . . . . . . Unauthorized Hacks 17 | . 4 1 1 . . . 2 2 . 1 . . . . . . . . . 2 . 4 . Terminals 14 | . 3 1 1 . . . 2 . . 1 . . . . . . . . . 2 . 4 . Track 9 | . 1 1 1 . . . 2 . . 1 . . . . . . . . . 1 . 2 . Assimilate 1 | . 1 . . . . . . . . . . . . . . . . . . . . . . Botnet 4 | . 1 . . . . . . . . . . . . . . . . . . 1 . 2 . Fabricators . | . . . . . . . . . . . . . . . . . . . . . . . . Repair Stations . | . . . . . . . . . . . . . . . . . . . . . . . . Recycling Units 3 | . 1 . . . . . . 2 . . . . . . . . . . . . . . . Tunnel 3 | . 1 . . . . . . 2 . . . . . . . . . . . . . . . Scanalyzers . | . . . . . . . . . . . . . . . . . . . . . . . . Garrison Access . | . . . . . . . . . . . . . . . . . . . . . . . . Data Cores Recovered 1 | . . . . . . . . . . 1 . . . . . . . . . . . . . Used . | . . . . . . . . . . . . . . . . . . . . . . . . Hacking Detections 43 | . 2 1 3 . . . 2 4 3 5 6 . . 1 4 . . . . 3 . 7 2 Full Trace Events 2 | . . . 1 . . . . 1 . . . . . . . . . . . . . . . Feedback Events . | . . . . . . . . . . . . . . . . . . . . . . . . Feedback Blocked . | . . . . . . . . . . . . . . . . . . . . . . . . Robot Schematics Acquired . | . . . . . . . . . . . . . . . . . . . . . . . . Robots Built . | . . . . . . . . . . . . . . . . . . . . . . . . Matter . | . . . . . . . . . . . . . . . . . . . . . . . . Time . | . . . . . . . . . . . . . . . . . . . . . . . . Total Robot Build Rating . | . . . . . . . . . . . . . . . . . . . . . . . . Part Schematics Acquired 8 | . . . 1 . . . . 1 . . 1 . . . . . . 4 . . . 1 . Parts Built . | . . . . . . . . . . . . . . . . . . . . . . . . Matter . | . . . . . . . . . . . . . . . . . . . . . . . . Time . | . . . . . . . . . . . . . . . . . . . . . . . . Total Part Build Rating . | . . . . . . . . . . . . . . . . . . . . . . . . Parts Repaired 2 | . . . . . . . . 1 . . . . . . . . . . . . . 1 . Time 80 | . . . . . . . . 26 . . . . . . . . . . . . . 54 . Parts Recycled . | . . . . . . . . . . . . . . . . . . . . . . . . Recycled Matter . | . . . . . . . . . . . . . . . . . . . . . . . . Retrieved Matter . | . . . . . . . . . . . . . . . . . . . . . . . . Retrieved Components . | . . . . . . . . . . . . . . . . . . . . . . . . Parts Scanalyzed 2 | . . . 1 . . . . . . . . . . . . . . . . . . 1 . Part Schematics Acquired 2 | . . . 1 . . . . . . . . . . . . . . . . . . 1 . Parts Damaged . | . . . . . . . . . . . . . . . . . . . . . . . . Bothacking | -11 -10 -10 -9 -9 -9 -8 -8 -8 -7 -6 -6 -6 -6 -6 -5 -5 -5 -5 -4 -4 -3 -3 -2 ------------ Run | Scr Mat Min Mat Min Exi Min Mat Sto Fac Fac Ext Cet Arc Hub Fac Upp Upp Zhi Pro Fac Res Tes Res Used RIF Installer . | . . . . . . . . . . . . . . . . . . . . . . . . Robots Hacked . | . . . . . . . . . . . . . . . . . . . . . . . . Non-combat . | . . . . . . . . . . . . . . . . . . . . . . . . Combat . | . . . . . . . . . . . . . . . . . . . . . . . . Robot Hacks Applied . | . . . . . . . . . . . . . . . . . . . . . . . . Relay Couplers Released . | . . . . . . . . . . . . . . . . . . . . . . . . Robots Rewired 15 | . . . . . . . . . . . 15 . . . . . . . . . . . . Allies Hacked . | . . . . . . . . . . . . . . . . . . . . . . . . Hacks Repelled . | . . . . . . . . . . . . . . . . . . . . . . . . Allies | -11 -10 -10 -9 -9 -9 -8 -8 -8 -7 -6 -6 -6 -6 -6 -5 -5 -5 -5 -4 -4 -3 -3 -2 -------- Run | Scr Mat Min Mat Min Exi Min Mat Sto Fac Fac Ext Cet Arc Hub Fac Upp Upp Zhi Pro Fac Res Tes Res Total Allies 19 | . . . . 4 . . . . . . 15 . . . . . . . . . . . . Largest Group 8 | . . . . 3 . . . . . . 8 6 3 1 . . . . . . . . . Highest-Rated Group 237 | . . . . 40 . . . . . . 237 181 87 37 . . . . . . . . . Highest-Rated Ally 37 | . . . . 31 . . . . . . 37 37 37 37 . . . . . . . . . Total Orders 4 | . . . . 2 . . . . . . 2 . . . . . . . . . . . . STAY 2 | . . . . 1 . . . . . . 1 . . . . . . . . . . . . FOLLOW 2 | . . . . 1 . . . . . . 1 . . . . . . . . . . . . Ally Attacks 124 | . . . . 30 . . . . . . 54 30 6 4 . . . . . . . . . Total Damage 2006 | . . . . 336 . . . . . . 966 527 100 77 . . . . . . . . . Kills 26 | . . . . 6 . . . . . . 8 9 . 3 . . . . . . . . . Allies Corrupted 1 | . . . . 1 . . . . . . . . . . . . . . . . . . . Allies Melted . | . . . . . . . . . . . . . . . . . . . . . . . . Intel | -11 -10 -10 -9 -9 -9 -8 -8 -8 -7 -6 -6 -6 -6 -6 -5 -5 -5 -5 -4 -4 -3 -3 -2 ------- Run | Scr Mat Min Mat Min Exi Min Mat Sto Fac Fac Ext Cet Arc Hub Fac Upp Upp Zhi Pro Fac Res Tes Res Robot Analysis Total 8 | . 1 1 . . . . 1 1 . . . . . . . . . 4 . . . . . Derelict Logs Recovered 10 | . . 2 . 2 . . . . . . . . . . . 1 3 . 2 . . . . Drone Launches . | . . . . . . . . . . . . . . . . . . . . . . . . Drone Recoveries . | . . . . . . . . . . . . . . . . . . . . . . . . Exploration | -11 -10 -10 -9 -9 -9 -8 -8 -8 -7 -6 -6 -6 -6 -6 -5 -5 -5 -5 -4 -4 -3 -3 -2 ------------- Run | Scr Mat Min Mat Min Exi Min Mat Sto Fac Fac Ext Cet Arc Hub Fac Upp Upp Zhi Pro Fac Res Tes Res Turns Passed 21233 | . 538 1035 1402 1349 1490 465 154 958 643 460 3068 383 107 304 604 849 1444 523 935 490 366 1911 1755 Spaces Moved 9168 | 1 251 417 575 646 763 222 69 362 281 204 1330 161 48 95 305 471 766 281 468 223 146 635 448 Core 14 | . 1 . . . . . . . . . . . . . . . . . . . . . 13 Treads 8678 | . 241 390 528 646 665 221 69 362 281 204 1085 161 48 95 305 471 766 281 468 223 146 635 387 Legs 476 | 1 9 27 47 . 98 1 . . . . 245 . . . . . . . . . . . 48 Wheels . | . . . . . . . . . . . . . . . . . . . . . . . . Hover . | . . . . . . . . . . . . . . . . . . . . . . . . Flight . | . . . . . . . . . . . . . . . . . . . . . . . . Fastest Speed 50 | 120 120 150 150 180 150 150 180 180 200 180 150 180 180 180 160 160 160 160 160 160 160 160 50 Average Speed 176 | 120 160 159 188 181 176 199 184 194 200 189 185 180 180 180 160 160 160 160 160 160 166 197 174 Slowest Speed 500 | 120 500 180 200 200 200 200 200 200 200 200 260 180 180 180 160 160 160 180 160 160 180 240 280 Overloaded Moves . | . . . . . . . . . . . . . . . . . . . . . . . . Propulsion Burnouts . | . . . . . . . . . . . . . . . . . . . . . . . . Robots Hopped . | . . . . . . . . . . . . . . . . . . . . . . . . Cave-ins Triggered . | . . . . . . . . . . . . . . . . . . . . . . . . Teleports 1 | . . . . . . . . . . . . . . . . . . . . . . 1 . Exploration Rate (%) 47 | 2 40 86 71 97 76 60 10 45 11 6 98 62 71 19 12 62 90 62 67 11 6 62 18 Regions Visited 23 Branch Regions 14 Pre-discovered Areas 11 | . 1 2 . 1 . . . 2 . . . . . . . 1 1 3 . . . . . Known Exits Taken 7 | . . . 1 . . . 1 1 1 1 . . . . 1 . . . . . 1 . . Unknown Exits Taken 16 | 1 1 1 . 1 1 1 . . . . 1 1 1 1 . 1 1 1 1 1 . 1 . Scrap Searched 12 | . . 1 . 2 . 1 . . . . . . . . . 2 4 . 2 . . . . Spaces Dug 26 | . . . . . . . 7 . . . 11 . . . . . . . . 1 1 3 3 Terrain Destroyed 844 | . . 6 98 . 20 16 18 . . . 260 1 8 186 10 16 8 . 15 43 19 99 21 Melee . | . . . . . . . . . . . . . . . . . . . . . . . . Projectile 137 | . . . . . . . . . . . 5 1 8 21 10 16 8 . 15 7 6 22 18 AOE 707 | . . 6 98 . 20 16 18 . . . 255 . . 165 . . . . . 36 13 77 3 Terrain Rammed . | . . . . . . . . . . . . . . . . . . . . . . . . Walls Destroyed . | . . . . . . . . . . . . . . . . . . . . . . . . Machines Disabled . | . . . . . . . . . . . . . . . . . . . . . . . . Actions | -11 -10 -10 -9 -9 -9 -8 -8 -8 -7 -6 -6 -6 -6 -6 -5 -5 -5 -5 -4 -4 -3 -3 -2 --------- Run | Scr Mat Min Mat Min Exi Min Mat Sto Fac Fac Ext Cet Arc Hub Fac Upp Upp Zhi Pro Fac Res Tes Res Total 12419 | . 319 703 778 765 850 236 88 525 331 268 1742 244 59 183 387 545 924 339 589 294 225 1042 983 Wait 1213 | . 4 215 79 63 . . 7 63 25 52 46 21 1 46 25 52 110 . 81 17 46 146 114 Move 9146 | . 250 416 574 645 762 221 68 361 280 203 1329 160 47 94 304 470 765 280 467 222 145 635 448 Hop . | . . . . . . . . . . . . . . . . . . . . . . . . Pick Up 222 | . 6 7 17 7 21 1 1 23 2 1 18 14 . 2 7 . 6 10 2 3 3 26 45 Fast Attach 86 | . 12 4 7 . . . 1 4 1 3 3 4 . 2 5 . . 8 . . 3 11 18 Attach 146 | . 2 1 5 2 11 . 3 1 2 3 16 . . . 2 4 1 1 1 6 3 27 55 Detach 23 | . . . . . . . 1 . . . 2 . . . . . . . . . . 16 4 Swap 91 | . 2 5 11 6 9 8 1 9 2 1 9 4 1 . 4 . . 6 1 2 1 3 6 Drop 151 | . 8 5 13 7 15 2 . 13 2 1 4 22 1 2 11 1 1 17 1 2 . 5 18 Fire 1128 | . 35 50 70 35 31 4 6 50 16 4 127 19 8 37 29 18 41 17 36 36 24 169 266 Melee . | . . . . . . . . . . . . . . . . . . . . . . . . Ram . | . . . . . . . . . . . . . . . . . . . . . . . . Kick 4 | . . . . . . . . . . . . . . . . . . . . . . . 4 Crush 20 | . . . 2 . . . . 1 1 . 2 . 1 . . . . . . 6 . 2 5 Escape Stasis 8 | . . . . . . . . . . . 6 . . . . . . . . . . 2 . Rewire 180 | . . . . . . . . . . . 180 . . . . . . . . . . . . Trap 1 | . . . . . 1 . . . . . . . . . . . . . . . . . . Miscellaneous . | . . . . . . . . . . . . . . . . . . . . . . . . Route ------- -11/Scrapyard -10/Materials (discovered 2 exits: *Mat / *Min) -10/Mines -9/Materials (discovered 5 exits: *Mat x3 / *Min x2) -9/Mines (discovered 3 exits: *Mat x2 / *Exi) -9/Exiles -8/Mines -8/Materials (discovered 4 exits: Fac x2 / *Sto x2) -8/Storage -7/Factory (discovered 4 exits: *Fac x4) -6/Factory (discovered 4 exits: Low x2 / *Ext x2) -6/Extension (discovered 3 exits: *Fac x2 / *Cet) -6/Cetus (discovered 2 exits: *Fac / [*Arc]) -6/Archives (discovered 2 exits: *Hub x2) -6/Hub_04(d) (discovered 2 exits: *Fac x2) -5/Factory (discovered 3 exits: *Fac / *Upp x2) -5/Upper Caves -5/Upper Caves (discovered 2 exits: *Fac / *Zhi) -5/Zhirov -4/Proximity Caves -4/Factory -3/Research -3/Testing -2/Research History --------- Turn | Location | Event 1 | -11/Scrapyard | Discovered new exit (range 0) 1 | -11/Scrapyard | Entered Materials 125 | -10/Materials | Discovered new exit (range 16) 303 | -10/Materials | Discovered new exit (range 3) 311 | -10/Materials | Build established: Mutant 539 | -10/Materials | Entered Mines 610 | -10/Mines | Joined a pair of Derelicts in attacking an 0b10 outpost 646 | -10/Mines | Learned Materials non-interactive machine intel 711 | -10/Mines | Excavation squad dispatched 711 | -10/Mines | A large section of the Mines collapsed 961 | -10/Mines | Excavation squad dispatched 1034 | -10/Mines | Learned location of Storage (-8) 1211 | -10/Mines | Excavation squad dispatched 1269 | -10/Mines | Met a Derelict who couldn't figure out how to use a Trap Extractor 1329 | -10/Mines | Received a Rocket Launcher from a helpful Derelict 1417 | -10/Mines | Found a hidden stash of uninstalled traps 1461 | -10/Mines | Excavation squad dispatched 1550 | -10/Mines | Discovered new exit (range 10) 1574 | -10/Mines | Entered Materials 1574 | -9/Materials | Evolved 2 slots: Utility x2 1575 | -9/Materials | Loaded intel: 28 non-interactive machine locations 1723 | -9/Materials | Discovered new exit (range 4) 1729 | -9/Materials | Identified exit to Mines 1949 | -9/Materials | Discovered new exit (range 4) 2371 | -9/Materials | Discovered new exit (range 5) 2564 | -9/Materials | Build established: Scavenger-Mutant 2659 | -9/Materials | Discovered new exit (range 15) 2796 | -9/Materials | Discovered exit to Mines (range 15) 2976 | -9/Materials | Entered Mines 2982 | -9/Mines | Assisted by bots powering up and referring to "LRC-V3" 3002 | -9/Mines | Learned 8 Materials zone layouts 3034 | -9/Mines | YI-UF0 nonchalantly dropped a Grenade Launcher on the ground 3120 | -9/Mines | Destroyed YI-UF0 3126 | -9/Mines | Found Prototype Storage 3135 | -9/Mines | Identified YI-UF0's Bottomless Matter Pit 3235 | -9/Mines | Assembled infested the area 3498 | -9/Mines | Discovered new exit (range 9) 3723 | -9/Mines | Learned location of Zion (-6) 3723 | -9/Mines | Discovered new exit (range 9) 4105 | -9/Mines | Received a Mining Laser from a helpful Derelict 4287 | -9/Mines | Deemed a non-threat by the Exiles lab entrance 4309 | -9/Mines | Discovered new exit (range 5) 4325 | -9/Mines | Entered Exiles 4514 | -9/Exiles | Met 8R-AWN 4544 | -9/Exiles | Met EX-HEX 4640 | -9/Exiles | Met EX-DEC 4819 | -9/Exiles | Visited The Gauntlet 4953 | -9/Exiles | Met EX-BIN 4994 | -9/Exiles | Aligned with FarCom system 4996 | -9/Exiles | Given EX-Vault access code 5037 | -9/Exiles | Opened EX-Vault 5077 | -9/Exiles | Warned to stay clear of 0b10 Research branches 5498 | -9/Exiles | Attacked by the Exiles 5556 | -9/Exiles | Core integrity fell below 50% 5581 | -9/Exiles | Lost 5 parts (1p2n1u1w) 5597 | -9/Exiles | Destroyed 8R-AWN 5609 | -9/Exiles | Found Prototype Ballistic Gun 5623 | -9/Exiles | Found Prototype Device 5639 | -9/Exiles | Identified 8R-AWN's Boregun 5645 | -9/Exiles | Found Prototype Processor 5652 | -9/Exiles | Found Prototype Protection 5666 | -9/Exiles | Identified AS-neutralizer No. 17b 5711 | -9/Exiles | Discovered new exit (range 14) 5815 | -9/Exiles | Entered Mines 6256 | -8/Mines | Discovered new exit (range 13) 6280 | -8/Mines | Entered Materials 6280 | -8/Materials | Evolved 2 slots: Utility x2 6280 | -8/Materials | Identified 8R-AWN's Armor/EX 6281 | -8/Materials | Identified exit to Factory 6296 | -8/Materials | Identified exit to Storage 6434 | -8/Materials | Entered Storage 6597 | -8/Storage | Repaired Hcp. Storage Unit 6995 | -8/Storage | Build established: Hauler-Mutant 7206 | -8/Storage | Garrison activated, responded to threat 7313 | -8/Storage | Discovered exit to Factory (range 5) 7392 | -8/Storage | Entered Factory 7392 | -7/Factory | Evolved 2 slots: Utility x2 7564 | -7/Factory | Identified Exp. Targeting Computer 7894 | -7/Factory | Identified exit to Factory 7941 | -7/Factory | Garrison activated, responded to threat 8035 | -7/Factory | Entered another Factory area 8035 | -6/Factory | Evolved 2 slots: Propulsion x1, Utility x1 8066 | -6/Factory | Lost 3 parts (1u2w) 8253 | -6/Factory | Identified exit to Lower Caves 8253 | -6/Factory | Identified exit to Extension 8261 | -6/Factory | Build established: Scavenger-Mutant 8495 | -6/Factory | Entered Extension 8719 | -6/Extension | Energy Cycler disabled 8720 | -6/Extension | Rescued a captive Derelict 8721 | -6/Extension | Rescued a captive Derelict 8964 | -6/Extension | Lost 4 parts (2n1u1w) 9331 | -6/Extension | Spotted B-75 Beast 9372 | -6/Extension | Lost 3 parts (1n1u1w) 9435 | -6/Extension | Build established: Hauler-Mutant 9748 | -6/Extension | Build established: Scavenger-Mutant 9760 | -6/Extension | Destroyed B-75 Beast 9796 | -6/Extension | Spotted B-75 Beast 9868 | -6/Extension | Destroyed B-75 Beast 9882 | -6/Extension | Lost 4 parts (1n1u2w) 9905 | -6/Extension | Discovered new exit (range 14) 10168 | -6/Extension | Extracted ID and sensor layout for unrecognized location from A7's data core 10471 | -6/Extension | Discovered new exit (range 10) 10473 | -6/Extension | Discovered new exit (range 6) 11095 | -6/Extension | Disrupted transfer network 11563 | -6/Extension | Entered Cetus 11563 | -6/Cetus | Accompanied by 6 allies 11587 | -6/Cetus | Spotted Cetus Guard 11587 | -6/Cetus | Spotted Cetus Guard 11587 | -6/Cetus | Allies destroyed Cetus Guard 11589 | -6/Cetus | Spotted Cetus Guard 11590 | -6/Cetus | Spotted Cetus Guard 11591 | -6/Cetus | Allies destroyed Cetus Guard 11591 | -6/Cetus | Allies destroyed Cetus Guard 11605 | -6/Cetus | Allies destroyed Cetus Guard 11744 | -6/Cetus | Discovered new exit (range 16) 11794 | -6/Cetus | Spotted Cetus Guard 11794 | -6/Cetus | Spotted Cetus Guard 11798 | -6/Cetus | Destroyed Cetus Guard 11799 | -6/Cetus | Spotted Cetus Guard 11801 | -6/Cetus | Allies destroyed Cetus Guard 11802 | -6/Cetus | Spotted Cetus Guard 11808 | -6/Cetus | Allies destroyed Cetus Guard 11809 | -6/Cetus | Destroyed Cetus Guard 11838 | -6/Cetus | Discovered new exit (range 15) 11852 | -6/Cetus | Met Revision 17 11946 | -6/Cetus | Entered Archives 11946 | -6/Archives | Accompanied by 3 allies 12001 | -6/Archives | Discovered new exit (range 16) 12018 | -6/Archives | Discovered new exit (range 16) 12053 | -6/Archives | Entered Hub_04(d) 12053 | -6/Hub_04(d) | Accompanied by 1 ally 12157 | -6/Hub_04(d) | Discovered new exit (range 8) 12235 | -6/Hub_04(d) | Destroyed 8 combat bots 12266 | -6/Hub_04(d) | Discovered new exit (range 15) 12298 | -6/Hub_04(d) | Network Hub disabled 12348 | -6/Hub_04(d) | Spotted Lightning 12353 | -6/Hub_04(d) | Spotted Lightning 12353 | -6/Hub_04(d) | Spotted Lightning 12353 | -6/Hub_04(d) | Spotted Lightning 12355 | -6/Hub_04(d) | Spotted Lightning 12355 | -6/Hub_04(d) | Spotted Lightning 12357 | -6/Hub_04(d) | Entered Factory 12357 | -5/Factory | Evolved 2 slots: Propulsion x1, Utility x1 12667 | -5/Factory | Identified exit to Upper Caves 12789 | -5/Factory | Discovered new exit (range 16) 12961 | -5/Factory | Entered Upper Caves 13143 | -5/Upper Caves | Attracted the attention of an 0b10 checkpoint 13519 | -5/Upper Caves | Learned location of Armory (-3) 13582 | -5/Upper Caves | Discovered new exit (range 11) 13810 | -5/Upper Caves | Entered another Upper Caves area 13910 | -5/Upper Caves | Discovered new exit (range 6) 14210 | -5/Upper Caves | Spotted B-75 Beast 14246 | -5/Upper Caves | Destroyed B-75 Beast 14324 | -5/Upper Caves | Learned 4 Factory zone layouts 14712 | -5/Upper Caves | Attracted the attention of an 0b10 checkpoint 15166 | -5/Upper Caves | Discovered new exit (range 14) 15254 | -5/Upper Caves | Entered Zhirov 15254 | -5/Zhirov | Discovered new exit (range 3) 15283 | -5/Zhirov | Met Zhirov 15325 | -5/Zhirov | Found Alien Artifact 15325 | -5/Zhirov | Identified Integrated Dissipator 15325 | -5/Zhirov | Installed Integrated Dissipator, increased core heat dissipation (+20) 15524 | -5/Zhirov | Found Alien Artifact 15565 | -5/Zhirov | Learned location of Quarantine (-2) 15565 | -5/Zhirov | Learned location of Command (-1) 15591 | -5/Zhirov | Zhirov requested help retrieving the SGEMP Prototype 15777 | -5/Zhirov | Entered Proximity Caves 15860 | -4/Proximity Caves | Learned Research terminal intel 15872 | -4/Proximity Caves | Learned 4 Research zone layouts 16680 | -4/Proximity Caves | Discovered new exit (range 15) 16712 | -4/Proximity Caves | Entered Factory 16712 | -4/Factory | Evolved 2 slots: Power x1, Utility x1 17032 | -4/Factory | Garrison activated, responded to threat 17043 | -4/Factory | Spotted B-86 Titan 17159 | -4/Factory | Discovered new exit (range 11) 17160 | -4/Factory | Lost 3 parts (1u2w) 17202 | -4/Factory | Entered Research 17202 | -3/Research | Evolved 2 slots: Utility x2 17203 | -3/Research | Identified exit to Testing 17204 | -3/Research | Loaded intel: 15 terminal locations 17402 | -3/Research | Revision forces began assault on 0b10 17450 | -3/Research | Met up with Revision 17++ 17568 | -3/Research | Entered Testing 17834 | -3/Testing | Found Prototype Energy Gun 17835 | -3/Testing | Identified Warp Gun 18031 | -3/Testing | Lost 4 parts (1p2u1w) 18100 | -3/Testing | Lost 3 parts (1n1u1w) 18189 | -3/Testing | Lost 4 parts (1n2u1w) 18203 | -3/Testing | Identified Transdimensional Reconstructor 18222 | -3/Testing | Spotted Striker 18224 | -3/Testing | Spotted Striker 18258 | -3/Testing | Spotted Alpha 7 18259 | -3/Testing | Warped through subspace 18449 | -3/Testing | Repaired Centrium Medium Armor Plating 18449 | -3/Testing | Build established: Hauler-Mutant 18714 | -3/Testing | Destroyed Striker 18720 | -3/Testing | Destroyed Striker 18761 | -3/Testing | Destroyed Alpha 7 18788 | -3/Testing | Lost 4 parts (1p3u) 18794 | -3/Testing | Found Prototype Energy Gun 18797 | -3/Testing | Found Prototype Ballistic Gun 18800 | -3/Testing | Found Antimissile System 18847 | -3/Testing | Identified Enh. Gamma Rifle 18906 | -3/Testing | Stole the SGEMP Prototype 19235 | -3/Testing | Found Prototype Hackware 19287 | -3/Testing | Discovered new exit (range 14) 19299 | -3/Testing | Garrison activated, responded to threat 19380 | -3/Testing | Scanned by Researcher 19406 | -3/Testing | Destroyed 8 combat bots 19414 | -3/Testing | Garrison activated, responded to threat 19479 | -3/Testing | Entered Research 19479 | -2/Research | Evolved 2 slots: Utility x2 19675 | -2/Research | Found Powered Armor 19678 | -2/Research | Found Powered Armor 19682 | -2/Research | Found Powered Armor 19689 | -2/Research | Found Powered Armor 19738 | -2/Research | Garrison activated, responded to threat 19774 | -2/Research | Spotted B-90 Cyclops 19830 | -2/Research | Destroyed 7 combat bots 19830 | -2/Research | Destroyed B-90 Cyclops 19847 | -2/Research | Found Powered Armor 19857 | -2/Research | Lost 12 parts (1p1n9u1w) 19911 | -2/Research | Identified Multirail 19979 | -2/Research | Destroyed 7 combat bots 20045 | -2/Research | Lost 3 parts (3u) 20165 | -2/Research | System corruption reached 10% 20239 | -2/Research | Destroyed 7 combat bots 20248 | -2/Research | Lost 7 parts (1p1n4u1w) 20356 | -2/Research | Lost 4 parts (2p1n1w) 20569 | -2/Research | Lost 3 parts (3u) 20620 | -2/Research | Spotted B-90 Cyclops 20641 | -2/Research | System corruption reached 30% 20651 | -2/Research | Destroyed B-90 Cyclops 20725 | -2/Research | Lost 13 parts (2p4n4u3w) 20729 | -2/Research | First assault squad dispatched 20809 | -2/Research | Core integrity fell below 50% 20834 | -2/Research | Destroyed 7 combat bots 20958 | -2/Research | Lost 3 parts (3u) 21014 | -2/Research | Build established: Scavenger-Mutant 21212 | -2/Research | Core integrity fell below 20% 21220 | -2/Research | Identified System Mapper 21234 | -2/Research | Destroyed by H-88 Terminator with Heavy Machine Gun Last Messages --------------- 21206_ Penetrated by Slug. 21208_ BONVBDKEIENC1ZLZUC 21210_ 8R-AWN's Armor/EX destroyed. 21211_ P-80 Master resets G-73 Enforcer, system corruption cleaned. 21212_ Slammed into P-80 Master. 21215_ P-80 Master suffers critical hit. 21215_ P-80 Master destroyed. 21220_ Identified System Mapper. 21221_ Dropped Hcp. Storage Unit. 21224_ TSS9I%J X6RFCUWL QYY3IJPQUNDZITYU%VHR 21224_ Dropped Hcp. Storage Unit. 21224_ Critical hit. 21224_ Hdn. Centrium Leg destroyed. 21225_ Dropped Hvy. Machine Gun. 21226_ Extracted 21 matter. 21226_ Acquired YI-UF0's Bottomless Matter Pit. 21229_ ALERT: Significant disruption in Zone 2K, assault force dispatched. 21234_ Penetrated by Slug. Map ----- +----------------------------------------------------+ | ?????????????????????????????????????????????????? | | ?????????????????????????????????????????????????? | | ?????????????????????????????????????????????????? | | ?????????????????????????????????????????????????? | | ?????????????????????????????????????????????????? | | ?????????????????????????????????????????????????? | | ?????????????????????????????????????????????????? | | ?????????????????????????????????????????????????? | | ?????????????????????????????????????????????????? | | ?????????????????????????????????????????????????? | | ?????????????????????????????????????????????????? | | ?????????????????????????????????????????????????? | | ?????????????????????????????????????????????????? | | ?????????????????????????????????????????????????? | | ?????????????????????????????????????????????????? | | ?????????????????????????????????????????????????? | | ?????????????????????????????????????????????????? | | ?????????????????????????????????????????????????? | | ?????????????????????????????????????????????????? | | ?????????????????????????????????????????????????? | | ?????????????????????????????????????????????????? | | ?????????????#???????????????????????????????????? | | ???????????### #####################+#######???? | | ?????????? [][p #???? | | ?????????? ]!p! #???? | | ?????????? @ [!hg/ !!#???? | | ?????????????????+########## ###########[%[#???? | | ???????????????????????????# #?????????#*= #???? | | ???????????????????????????#% #?????????# #???? | | ???????????????????????##### #??#####??# #???? | | ???????????????????????# # #??# ?# #???? | | ???????????????????????# [# #??# # #?? | | ???????????????????????# !]# #??# # # | | ???????????????????????#==%# #??# " " | | ???????????????????????#=%=# #??# #! # | | ???????????????????????#![=# #??# # # | | ???????????????????????#%%*# #####+###?# #?### | | ??????????????????????###/##%% #??# #???? | | ??????????????????????#%%%%% ![ #??# #???? | | ??????????????????????#%#### #??# #???? | | ??????????????????????#%#??######## #??# +???? | | ??????????????????????#%#?????????# #??# #???? | | ??????????????????????# #?????????# #??# #???? | | ??????????????????????# #??#??????# #### ##### | | ??????????????????????# #??# ????# | | ??????????????????????# #??# ??# | | ??????????????????????# #??# # | | ??????????????????????# #??#= + ############ | | ??????????????????????# #??# # #??????????? | | ??????????????????????# #??# ??# #??????????? | +----------------------------------------------------+ Best States ------------- Heat Dissipation 169 Energy Generation 57 Energy Capacity 600 Matter Stores 300 Matter Capacity 300 Sight Range 16 Robot Scan Range 20 Terrain Scan Density 10 Power Amplification 30 EM Shielding 2 Armor Coverage 3150 Resistance: TH 20 Resistance: EX 90 Resistance: EM 20 Core Shielding 40 Power Shielding 66 Weapon Shielding 66 Reclamation Efficiency 25 Weapon Cycling 25 Evasion (%) 40 Targeting Accuracy 12 Target Analysis 8 Armor Integrity Analysis 66 Recoil Reduction 4 Salvage Targeting 4 Offensive Hacking 20 Item Schematics ----------------- Hcp. Storage Unit | -9/Materials | Scanalyzed Imp. Cooling System | -8/Storage | Hacked Hyp. Mass Driver | -6/Extension | Hacked Assault Drone Bay | -5/Zhirov | Free Exp. Heat Sink | -5/Zhirov | Free Exp. Optical Array | -5/Zhirov | Free Imp. Arc Thrower | -5/Zhirov | Free Centrium Medium Armor Plating | -3/Testing | Scanalyzed Robot Schematics ------------------ None Fabricated ------------ Nothing Alien Tech Used ----------------- Integrated Dissipator Transdimensional Reconstructor Achievements -------------- None Challenges ------------ None Game ------ Seed CoordinationMiningReplicator Manual? 0 Play Time 02:46:26 Cumulative 220.5 hours Start 2021.01.04 @ 18:56:22 End 2021.01.04 @ 23:04:30 Sessions 1 Manual Loads 0 Difficulty Rogue Special Mode None Game No. 203 Rogue 196 Adventurer 0 Explorer 7 Win Type - Total 5 Types 1/0/4/0/0/0/0/0/0 Lore% 69 Gallery% 90 Achievement% 69 Wizard Run 0 Options --------- ASCII 0 Keyboard 0 Movement Numpad Keybinds 0 Fullscreen 1 Font 18/X11 Map View 76x50 Tactical HUD 1 Map Filters NONE Filters NONE Steam 1 RUN: 33f77a60-285d-492c-9eaf-cc3c7ee6bf5a